fUST/lending_fUST_20260130
["ID","MTS","AMOUNT","RATE_DAILY","PERIOD"]
[404032182,1769759445051,-151.0,0.00023288,2]
[404032183,1769759445063,-468.732908,0.00023288,2]
[404032184,1769759445073,-151.0,0.00023288,2]
[404032185,1769759445082,-151.0,0.00023288,2]
[404032186,1769759445092,-151.0,0.00023288,2]
[404032187,1769759445102,-151.0,0.00023288,2]
[404032188,1769759445111,-151.0,0.00023288,2]
[404032189,1769759445120,-151.0,0.00023288,2]
[404032190,1769759445131,-151.0,0.00023288,2]
[404032191,1769759445142,-266.599275,0.00023288,2]
[404032192,1769759445151,-151.0,0.00023288,2]
[404032193,1769759445160,-151.0,0.00023288,2]
[404032194,1769759445169,-293.104018,0.00023288,2]
[404032195,1769759445178,-151.0,0.00023288,2]
[404032196,1769759445187,-151.0,0.00023288,2]
[404032197,1769759445196,-240.802961,0.00023288,2]
[404032198,1769759445205,-151.0,0.00023288,2]
[404032199,1769759445214,-151.0,0.00023288,2]
[404032200,1769759445223,-151.0,0.00023288,2]
[404032201,1769759445232,-151.0,0.00023288,2]
[404032202,1769759445242,-151.0,0.00023288,2]
[404032203,1769759445251,-151.0,0.00023288,2]
[404032204,1769759445261,-151.0,0.00023288,2]
[404032205,1769759445270,-292.541834,0.00023288,2]
[404032206,1769759445280,-151.0,0.00023288,2]
[404032207,1769759445289,-151.0,0.00023288,2]
[404032208,1769759445298,-151.0,0.00023288,2]
[404032209,1769759445307,-151.0,0.00023288,2]
[404032210,1769759445316,-151.0,0.00023288,2]
[404032211,1769759445326,-151.0,0.00023288,2]
[404032212,1769759445336,-158.65506,0.00023288,2]
[404032213,1769759445345,-151.0,0.00023288,2]
[404032214,1769759445355,-151.0,0.00023288,2]
[404032215,1769759445364,-151.0,0.00023288,2]
[404032216,1769759445373,-151.0,0.00023288,2]
[404032217,1769759445383,-152.470674,0.00023288,2]
[404032218,1769759445392,-151.0,0.00023288,2]
[404032219,1769759445401,-151.0,0.00023288,2]
[404032220,1769759445411,-151.0,0.00023288,2]
[404032221,1769759445420,-151.0,0.00023288,2]
[404032222,1769759445429,-184.430996,0.00023288,2]
[404032223,1769759445438,-151.0,0.00023288,2]
[404032224,1769759445447,-151.0,0.00023288,2]
[404032225,1769759445456,-151.0,0.00023288,2]
[404032226,1769759445466,-151.0,0.00023288,2]
[404032227,1769759445476,-151.0,0.00023288,2]
[404032228,1769759445485,-151.0,0.00023288,2]
[404032229,1769759445494,-151.0,0.00023288,2]
[404032230,1769759445503,-151.0,0.00023288,2]
[404032231,1769759445513,-151.0,0.00023288,2]
[404032232,1769759445522,-248.384512,0.00023288,2]
[404032233,1769759445532,-151.0,0.00023288,2]
[404032234,1769759445542,-151.0,0.00023288,2]
[404032235,1769759445552,-151.0,0.00023288,2]
[404032236,1769759445562,-151.0,0.00023288,2]
[404032237,1769759445571,-151.0,0.00023288,2]
[404032238,1769759445581,-151.0,0.00023288,2]
[404032239,1769759445590,-151.0,0.00023288,2]
[404032240,1769759445600,-151.0,0.00023288,2]
[404032241,1769759445610,-151.0,0.00023288,2]
[404032242,1769759445619,-151.0,0.00023288,2]
[404032243,1769759445628,-151.0,0.00023288,2]
[404032244,1769759445638,-151.0,0.00023288,2]
[404032245,1769759445647,-151.0,0.00023288,2]
[404032246,1769759445656,-246.540118,0.00023288,2]
[404032247,1769759445665,-153.493739,0.00023288,2]
[404032248,1769759445675,-151.0,0.00023288,2]
[404032249,1769759445684,-151.0,0.00023288,2]
[404032250,1769759445694,-245.401058,0.00023288,2]
[404032251,1769759445703,-151.0,0.00023288,2]
[404032252,1769759445712,-165.640575,0.00023288,2]
[404032253,1769759445722,-151.0,0.00023288,2]
[404032254,1769759445731,-151.0,0.00023288,2]
[404032255,1769759445740,-151.0,0.00023288,2]
[404032256,1769759445749,-151.0,0.00023288,2]
[404032257,1769759445759,-151.0,0.00023288,2]
[404032258,1769759445768,-151.0,0.00023288,2]
[404032259,1769759445777,-151.0,0.00023288,2]
[404032260,1769759445787,-151.0,0.00023288,2]
[404032262,1769759445797,-153.705104,0.00023288,2]
[404032263,1769759445807,-156.804209,0.00023288,2]
[404032264,1769759445817,-224.998287,0.00023288,2]
[404032265,1769759445826,-160.360506,0.00023288,2]
[404032266,1769759445836,-173.748602,0.00023288,2]
[404032267,1769759445845,-173.748602,0.00023288,2]
[404032269,1769759445855,-173.748602,0.00023288,2]
[404032271,1769759445864,-173.748602,0.00023288,2]
[404032273,1769759445873,-173.748602,0.00023288,2]
[404032274,1769759445883,-173.748602,0.00023288,2]
[404032275,1769759445891,-173.748602,0.00023288,2]
[404032276,1769759445900,-173.748602,0.00023288,2]
[404032277,1769759445909,-173.748602,0.00023288,2]
[404032278,1769759445918,-173.748602,0.00023288,2]
[404032279,1769759445927,-173.748602,0.00023288,2]
[404032280,1769759445936,-173.748594,0.00023288,2]
[404032281,1769759445944,-151.0,0.00023288,2]
[404032282,1769759445954,-253.22963,0.00023288,2]
[404032283,1769759445963,-151.0,0.00023288,2]
[404032284,1769759445972,-151.0,0.00023288,2]
[404032285,1769759445981,-208.350875,0.00023288,2]
[404032286,1769759445991,-208.350875,0.00023288,2]
[404032287,1769759446000,-208.350875,0.00023288,2]
[404032288,1769759446009,-208.350875,0.00023288,2]
[404032289,1769759446019,-208.350875,0.00023288,2]
[404032290,1769759446028,-208.350875,0.00023288,2]
[404032291,1769759446037,-208.350875,0.00023288,2]
[404032292,1769759446047,-208.350875,0.00023288,2]
[404032293,1769759446057,-208.350875,0.00023288,2]
[404032294,1769759446070,-208.350875,0.00023288,2]
[404032295,1769759446079,-208.350875,0.00023288,2]
[404032296,1769759446089,-208.35087,0.00023288,2]
[404032297,1769759446098,-151.0,0.00023288,2]
[404032298,1769759446107,-151.0,0.00023288,2]
[404032299,1769759446117,-151.0,0.00023288,2]
[404032300,1769759446125,-151.0,0.00023288,2]
[404032301,1769759446135,-209.720492,0.00023288,2]
[404032302,1769759446144,-160.379804,0.00023288,2]
[404032303,1769759446153,-160.379804,0.00023288,2]
[404032305,1769759446163,-160.379804,0.00023288,2]
[404032306,1769759446172,-160.379804,0.00023288,2]
[404032307,1769759446181,-160.379804,0.00023288,2]
[404032308,1769759446189,-160.379804,0.00023288,2]
[404032309,1769759446198,-160.379804,0.00023288,2]
[404032310,1769759446207,-160.379809,0.00023288,2]
[404032311,1769759446216,-221.849496,0.00023288,2]
[404032312,1769759446225,-151.0,0.00023288,2]
[404032313,1769759446234,-151.0,0.00023288,2]
[404032314,1769759446243,-151.0,0.00023288,2]
[404032315,1769759446252,-179.640026,0.00023288,2]
[404032316,1769759446263,-312.135923,0.00023288,2]
[404032317,1769759446272,-312.135923,0.00023288,2]
[404032318,1769759446282,-279.448802,0.00023288,2]
[404032319,1769759446290,-279.448802,0.00023288,2]
[404032320,1769759446300,-199.536872,0.00023288,2]
[404032321,1769759446309,-312.135923,0.00023288,2]
[404032322,1769759446318,-279.448802,0.00023288,2]
[404032323,1769759446327,-312.135917,0.00023288,2]
[404032324,1769759446336,-279.448802,0.00023288,2]
[404032325,1769759446345,-279.448802,0.00023288,2]
[404032326,1769759446354,-279.448802,0.00023288,2]
[404032327,1769759446363,-279.448802,0.00023288,2]
[404032328,1769759446372,-279.448799,0.00023288,2]
[404032329,1769759446381,-233.885542,0.00023288,2]
[404032330,1769759446390,-233.885542,0.00023288,2]
[404032331,1769759446399,-233.885542,0.00023288,2]
[404032332,1769759446408,-233.885542,0.00023288,2]
[404032333,1769759446418,-233.885542,0.00023288,2]
[404032334,1769759446429,-233.885542,0.00023288,2]
[404032335,1769759446438,-233.885542,0.00023288,2]
[404032336,1769759446447,-233.885534,0.00023288,2]
[404032337,1769759446458,-3306.523051,0.00023288,2]
[404032338,1769759446468,-3306.523051,0.00023288,2]
[404032339,1769759446478,-3306.523051,0.00023288,2]
[404032340,1769759446487,-3306.523051,0.00023288,2]
[404032341,1769759446496,-3306.523051,0.00023288,2]
[404032342,1769759446506,-3306.523051,0.00023288,2]
[404032343,1769759446515,-3306.523051,0.00023288,2]
[404032344,1769759446524,-3306.523058,0.00023288,2]
[404032345,1769759446533,-156.564085,0.00023288,2]
[404032346,1769759446543,-151.0,0.00023288,2]
[404032347,1769759446552,-151.0,0.00023288,2]
[404032348,1769759446562,-151.0,0.00023288,2]
[404032349,1769759446571,-151.0,0.00023288,2]
[404032350,1769759446580,-151.0,0.00023288,2]
[404032351,1769759446589,-151.0,0.00023288,2]
[404032352,1769759446599,-372.764666,0.00023288,2]
[404032353,1769759446608,-372.764666,0.00023288,2]
[404032354,1769759446617,-372.764666,0.00023288,2]
[404032355,1769759446626,-372.764666,0.00023288,2]
[404032356,1769759446635,-372.764666,0.00023288,2]
[404032357,1769759446644,-372.764666,0.00023288,2]
[404032358,1769759446653,-372.764666,0.00023288,2]
[404032359,1769759446663,-372.764669,0.00023288,2]
[404032360,1769759446672,-1396.553416,0.00023288,2]
[404032361,1769759446681,-1396.553416,0.00023288,2]
[404032362,1769759446691,-1396.553416,0.00023288,2]
[404032363,1769759446700,-1396.553416,0.00023288,2]
[404032364,1769759446709,-1396.553416,0.00023288,2]
[404032365,1769759446718,-1396.553416,0.00023288,2]
[404032366,1769759446727,-1396.553416,0.00023288,2]
[404032367,1769759446736,-1396.553423,0.00023288,2]
[404032368,1769759446745,-284.957964,0.00023288,2]
[404032369,1769759446754,-284.957964,0.00023288,2]
[404032370,1769759446763,-284.957964,0.00023288,2]
[404032371,1769759446773,-284.957964,0.00023288,2]
[404032372,1769759446782,-284.957964,0.00023288,2]
[404032373,1769759446791,-284.957964,0.00023288,2]
[404032374,1769759446800,-284.957964,0.00023288,2]
[404032375,1769759446809,-284.957974,0.00023288,2]
[404032376,1769759446821,-151.0,0.00023288,2]
[404032377,1769759446830,-151.0,0.00023288,2]
[404032378,1769759446840,-151.0,0.00023288,2]
[404032379,1769759446849,-151.0,0.00023288,2]
[404032381,1769759446859,-151.0,0.00023288,2]
[404032383,1769759446868,-151.0,0.00023288,2]
[404032384,1769759446877,-151.0,0.00023288,2]
[404032385,1769759446979,-151.0,0.00023288,2]
[404032386,1769759446988,-235.081969,0.00023288,2]
[404032387,1769759446998,-235.081969,0.00023288,2]
[404032388,1769759447007,-235.081969,0.00023288,2]
[404032389,1769759447016,-219.87434,0.00023288,2]
[404032390,1769759447026,-235.081973,0.00023288,2]
[404032391,1769759447034,-219.87434,0.00023288,2]
[404032392,1769759447044,-219.87434,0.00023288,2]
[404032393,1769759447053,-219.874341,0.00023288,2]
[404032394,1769759447065,-151.0,0.00023288,2]
[404032395,1769759447074,-151.0,0.00023288,2]
[404032396,1769759447083,-151.0,0.00023288,2]
[404032397,1769759447093,-151.0,0.00023288,2]
[404032398,1769759447102,-151.0,0.00023288,2]
[404032399,1769759447111,-258.848094,0.00023288,2]
[404032400,1769759447121,-228.011036,0.00023288,2]
[404032401,1769759447131,-228.011036,0.00023288,2]
[404032402,1769759447140,-228.011036,0.00023288,2]
[404032403,1769759447149,-228.011035,0.00023288,2]
[404032404,1769759447159,-226.216719,0.00023288,2]
[404032405,1769759447168,-226.216719,0.00023288,2]
[404032406,1769759447177,-1060.537033,0.00023288,2]
[404032407,1769759447187,-226.216719,0.00023288,2]
[404032408,1769759447195,-1060.537033,0.00023288,2]
[404032409,1769759447204,-226.21671235,0.00023288,2]
[404032410,1769759447213,-1060.537033,0.00023288,2]
[404032411,1769759447222,-1060.537024,0.00023288,2]
[404032412,1769759447232,-1684.086969,0.00023288,2]
[404032413,1769759447241,-1684.086969,0.00023288,2]
[404032414,1769759447250,-163.594547,0.00023288,2]
[404032415,1769759447259,-1684.086969,0.00023288,2]
[404032416,1769759447268,-1684.08697,0.00023288,2]
[404032417,1769759447277,-199.313545,0.00023288,2]
[404032418,1769759447286,-199.313545,0.00023288,2]
[404032419,1769759447295,-199.313545,0.00023288,2]
[404032420,1769759447305,-199.313539,0.00023288,2]
[404032421,1769759447314,-151.0,0.00023288,2]
[404032422,1769759447323,-151.0,0.00023288,2]
[404032423,1769759447332,-568.737024,0.00023288,2]
[404032424,1769759447341,-255.847914,0.00023288,2]
[404032425,1769759447350,-568.737024,0.00023288,2]
[404032426,1769759447359,-255.847914,0.00023288,2]
[404032427,1769759447368,-151.0,0.00023288,2]
[404032428,1769759447378,-568.737024,0.00023288,2]
[404032429,1769759447387,-255.847914,0.00023288,2]
[404032430,1769759447396,-151.0,0.00023288,2]
[404032431,1769759447405,-568.737033,0.00023288,2]
[404032432,1769759447414,-255.847916,0.00023288,2]
[404032433,1769759447424,-223.188329,0.00023288,2]
[404032434,1769759447438,-223.188329,0.00023288,2]
[404032435,1769759447448,-223.188329,0.00023288,2]
[404032436,1769759447457,-223.188338,0.00023288,2]
[404032437,1769759447468,-468.732908,0.00023288,2]
[404032438,1769759447477,-468.732908,0.00023288,2]
[404032439,1769759447487,-468.732908,0.00023288,2]
[404032440,1769759447496,-151.0,0.00023288,2]
[404032441,1769759447505,-151.0,0.00023288,2]
[404032442,1769759447514,-151.0,0.00023288,2]
[404032443,1769759447523,-468.732917,0.00023288,2]
[404032444,1769759447532,-151.0,0.00023288,2]
[404032445,1769759447542,-151.0,0.00023288,2]
[404032446,1769759447551,-151.0,0.00023288,2]
[404032447,1769759447560,-151.0,0.00023288,2]
[404032448,1769759447569,-151.0,0.00023288,2]
[404032449,1769759447578,-151.0,0.00023288,2]
[404032450,1769759447588,-151.0,0.00023288,2]
[404032451,1769759447596,-151.0,0.00023288,2]
[404032452,1769759447606,-151.0,0.00023288,2]
[404032453,1769759447615,-151.0,0.00023288,2]
[404032454,1769759447624,-150.65,0.000233,2]
[404032455,1769759447633,-169.81,0.000233,7]
[404032456,1769759447643,-155.27,0.000234,2]
[404032457,1769759447652,-150.48,0.000234,2]
[404032458,1769759447661,-151.0,0.000234,6]
[404032459,1769759447670,-1000.0,0.00023422,10]
[404032460,1769759447680,-244.0,0.00023422,10]
[404032461,1769759447690,-4499.84,0.000235,2]
[404032462,1769759447700,-1479.12,0.000235,14]
[404032463,1769759447710,-450.88726713,0.00023562,2]
[404032464,1769759447719,-614.74,0.000237,3]
[404032465,1769759447728,-150.65,0.000238,2]
[404032466,1769759447738,-402.16,0.000238,7]
[404032467,1769759447747,-285.0,0.00023835,2]
[404032468,1769759447757,-20263.52158371,0.00024,30]
[404032469,1769759447882,-1050.77471186,0.00024,30]
[404032470,1769759447893,-8969.16794341,0.00024,30]
[404032471,1769759447904,-4536.59732323,0.00024,30]
[404032472,1769759447915,-322.28539994,0.00024,30]
[404032473,1769759447974,-1987.87049881,0.00024,30]
[404032474,1769759448248,-5132.95729005,0.00024,30]
[404032475,1769759448259,-86964.85480215,0.00024,30]
[404032476,1769760036811,-117.46480252,0.00012057,2]
[404032477,1769760036824,-404.05099574,0.00012057,2]
[404032478,1769760036834,-117.46480252,0.00012769,2]
[404032480,1769760439150,-150.0,0.00013769,2]
[404032481,1769760439174,-265.68145963,0.00014269,2]
[404032482,1769760533799,504.27034978,0.0003013,120]
[404032502,1769760632237,-734.31854037,0.00014269,2]
[404032504,1769760632247,-624.0,0.00014269,2]
[404032506,1769760632256,-150.0,0.00014565,2]
[404032508,1769760632266,-160.0,0.00014862,2]
[404032510,1769760632275,-315.741,0.00015005,2]
[404032512,1769760632286,-700.62205843,0.00015211,2]
[404032515,1769760632315,-1048.04008811,0.00015211,2]
[404032517,1769760632326,-1041.66666667,0.00015245,2]
[404032519,1769760632336,-283.0,0.00015298,2]
[404032521,1769760632345,-300.0,0.00015298,2]
[404032523,1769760632355,-206.0,0.00015298,2]
[404032525,1769760632364,-391.2560869,0.00015299,2]
[404032526,1769760632373,-500.0,0.00015299,2]
[404032528,1769760632382,-532.36623799,0.00015299,2]
[404032530,1769760632392,-151.0,0.000153,2]
[404032532,1769760632402,-151.0,0.000153,2]
[404032534,1769760632415,-151.0,0.000153,2]
[404032535,1769760632425,-151.0,0.000153,2]
[404032536,1769760632435,-151.0,0.000153,2]
[404032537,1769760632444,-151.0,0.000153,2]
[404032538,1769760632455,-34198.35262992,0.000153,2]
[404032558,1769760638883,-2668.98,0.000153,2]
[404032566,1769760638954,-6356.2492114,0.000153,2]
[404032568,1769760638964,-265.74968895,0.0001531,2]
[404032570,1769760638974,-19554.69345794,0.00015311,2]
[404032572,1769760638985,-5995.0174669,0.00015311,2]
[404032574,1769760639000,-2614.17581991,0.00015311,2]
[404032576,1769760639013,-5410.19813332,0.00015311,2]
[404032579,1769760639025,-558.0997,0.00015311,2]
[404032605,1769760640792,-1840.03539928,0.00015311,2]
[404032613,1769760645894,-657.72365309,0.00015311,2]
[404032614,1769760645905,-455.08862534,0.00015311,2]
[404032615,1769760645984,-315.0,0.00015311,2]
[404032617,1769760645994,-7096.46270025,0.00015311,2]
[404032621,1769760646519,-1259.30593299,0.00015311,2]
[404032622,1769760646532,-57379.37187144,0.00015311,2]
[404032630,1769761168026,548.53,0.000301,120]
[404032665,1769761832635,-6906.4845593,0.00014204,2]
[404032667,1769761832644,-968.2756982,0.00014287,2]
[404032669,1769761832654,-206.0,0.00014553,2]
[404032671,1769761832663,-150.0,0.00014554,2]
[404032672,1769761832673,-322.568,0.00015005,2]
[404032673,1769761832683,-283.0,0.0001521,2]
[404032674,1769761832692,-300.0,0.0001521,2]
[404032675,1769761832702,-252.48016624,0.00015211,2]
[404032676,1769761832711,-1678.59994067,0.00015211,2]
[404032677,1769761832720,-623.95465158,0.00015252,2]
[404032678,1769761832732,-417.71201509,0.00015252,2]
[404032679,1769761832742,-500.0,0.00015295,2]
[404032680,1769761832752,-500.0,0.00015295,2]
[404032681,1769761832762,-500.0,0.00015295,2]
[404032682,1769761832772,-500.0,0.00015295,2]
[404032683,1769761832781,-500.0,0.00015295,2]
[404032684,1769761832794,-532.36623799,0.00015295,2]
[404032685,1769761832803,-460.21040713,0.00015295,2]
[404032686,1769761832813,-500.0,0.00015295,2]
[404032687,1769761832823,-500.0,0.00015295,2]
[404032688,1769761832832,-500.0,0.00015295,2]
[404032689,1769761832842,-500.0,0.00015295,2]
[404032690,1769761832851,-618.92667524,0.00015295,2]
[404032691,1769761832861,-500.0,0.00015295,2]
[404032692,1769761832871,-500.0,0.00015295,2]
[404032693,1769761832880,-500.0,0.00015295,2]
[404032694,1769761832890,-279.43784675,0.00015295,2]
[404032695,1769761832899,-500.0,0.00015295,2]
[404032696,1769761832908,-500.0,0.00015295,2]
[404032697,1769761832917,-470.1635921,0.00015295,2]
[404032698,1769761832927,-500.0,0.00015295,2]
[404032699,1769761832936,-500.0,0.00015295,2]
[404032700,1769761832946,-500.0,0.00015295,2]
[404032701,1769761832955,-500.0,0.00015295,2]
[404032702,1769761832964,-500.0,0.00015295,2]
[404032703,1769761832974,-500.0,0.00015295,2]
[404032704,1769761832984,-500.0,0.00015295,2]
[404032705,1769761832994,-500.0,0.00015295,2]
[404032706,1769761833004,-500.0,0.00015295,2]
[404032707,1769761833013,-34198.35262992,0.00015296,2]
[404032708,1769761833024,-151.0,0.000153,2]
[404032709,1769761833034,-151.0,0.000153,2]
[404032710,1769761833043,-151.0,0.000153,2]
[404032711,1769761833053,-151.0,0.000153,2]
[404032712,1769761833063,-151.0,0.000153,2]
[404032713,1769761833073,-151.0,0.000153,2]
[404032714,1769761833086,-186.02478227,0.0001531,2]
[404032715,1769761833096,-645.44581351,0.00015311,2]
[404032716,1769761833115,-504.26571258,0.00015311,2]
[404032734,1769761838556,-1637.54214461,0.00015311,2]
[404032736,1769761838568,-1879.21932739,0.00015311,2]
[404032738,1769761838580,-10895.68505905,0.00015311,2]
[404032748,1769761841119,-4820.96573661,0.00015311,2]
[404032770,1769761846999,-2739.63334833,0.00015311,2]
[404032793,1769762850127,-556.26545896,0.00013695,2]
[404032794,1769762850149,-150.0,0.00013834,2]
[404032795,1769762850171,-620.0,0.00014008,2]
[404032796,1769762850194,-1020.2442579,0.00014149,2]
[404032797,1769762850214,-1436.19156576,0.00014421,2]
[404032798,1769763007587,185.0,0.00030137,120]
[404032818,1769763032506,-2185.19043114,0.00014421,2]
[404032819,1769763032516,-626.0,0.00014421,2]
[404032820,1769763032527,-638.45641744,0.00015111,2]
[404032821,1769763032536,-1510.73994663,0.00015211,2]
[404032822,1769763032546,-1041.66666667,0.00015245,2]
[404032823,1769763032555,-300.0,0.00015295,2]
[404032825,1769763032564,-300.0,0.00015295,2]
[404032827,1769763032574,-254.8350214,0.00015296,2]
[404032830,1769763032583,-7990.1217947,0.00015296,2]
[404032832,1769763032592,-197.03,0.00015301,3]
[404032834,1769763032602,-591.09,0.00015301,3]
[404032837,1769763032612,-179.88074169,0.0001531,2]
[404032840,1769763032622,-531.04864964,0.0001531,2]
[404032843,1769763032631,-607.79595468,0.0001531,2]
[404032846,1769763032639,-242.46144731,0.0001531,2]
[404032848,1769763032649,-410.18476614,0.0001531,2]
[404032850,1769763032659,-314.035,0.0001531,2]
[404032852,1769763032668,-325323.23880685,0.00015311,2]
[404032854,1769763032680,-1223.29296826,0.00015311,2]
[404032868,1769763038610,-5708.37153822,0.00015311,2]
[404032869,1769763038622,-3618.26559289,0.00015311,2]
[404032876,1769763040859,-29070.1655866,0.00015311,2]
[404032877,1769763040911,-1264.4551339,0.00015311,2]
[404032907,1769763045648,-3000.0,0.00015311,2]
[404032908,1769763637308,-1289.95793183,0.00012879,2]
[404032910,1769763653092,-150.0,0.00013108,2]
[404032911,1769763653121,-500.0,0.00013273,2]
[404032912,1769763653149,-508.81622736,0.00013273,2]
[404032913,1769763682784,-500.0,0.00013273,2]
[404032914,1769763682913,-158.81622736,0.00013273,2]
[404032920,1769764051210,-159.62665953,0.00013097,2]
[404032921,1769764051229,-500.0,0.00013273,2]
[404032922,1769764051249,-92.7567824,0.00013273,2]
[404033245,1769764237750,-407.2432176,0.00013273,2]
[404033246,1769764237760,-341.18377264,0.00013273,2]
[404033247,1769764237771,-150.0,0.00013297,2]
[404033248,1769764237781,-300.0,0.00013635,2]
[404033249,1769764237792,-300.0,0.00013636,2]
[404033250,1769764237804,-300.0,0.00013636,2]
[404033251,1769764237816,-300.0,0.00013636,2]
[404033252,1769764237826,-300.0,0.00013636,2]
[404033253,1769764237837,-300.0,0.00013636,2]
[404033254,1769764237847,-300.0,0.00013636,2]
[404033255,1769764237858,-300.0,0.00013636,2]
[404033256,1769764237867,-300.0,0.00013636,2]
[404033257,1769764237882,-300.0,0.00013636,2]
[404033258,1769764237893,-300.0,0.00013636,2]
[404033259,1769764237913,-300.0,0.00013636,2]
[404033260,1769764237928,-300.0,0.00013636,2]
[404033261,1769764237939,-300.0,0.00013636,2]
[404033262,1769764237953,-300.0,0.00013636,2]
[404033263,1769764237965,-300.0,0.00013636,2]
[404033264,1769764237978,-500.0,0.00013699,2]
[404033265,1769764237991,-1000.0,0.00013951,2]
[404033266,1769764238001,-420.0,0.00014943,2]
[404033268,1769764238014,-500.0,0.00014978,2]
[404033270,1769764238027,-500.0,0.00014978,2]
[404033272,1769764238039,-150.0,0.00014978,2]
[404033273,1769764238053,-150.0,0.00014978,2]
[404033274,1769764238064,-150.0,0.00014978,2]
[404033275,1769764238078,-500.0,0.00015034,2]
[404033276,1769764238090,-500.0,0.00015034,2]
[404033277,1769764238100,-150.0,0.00015034,2]
[404033278,1769764238111,-150.0,0.00015034,2]
[404033279,1769764238121,-255.29216548,0.00015035,2]
[404033280,1769764238134,-200.93614749,0.00015035,2]
[404033281,1769764238145,-238.07744408,0.00015035,2]
[404033282,1769764238156,-251.67567476,0.00015035,2]
[404033283,1769764238168,-250.0,0.00015035,2]
[404033284,1769764238180,-251.20899636,0.00015035,2]
[404033286,1769764238192,-500.0,0.00015115,2]
[404033287,1769764238204,-500.0,0.00015115,2]
[404033288,1769764238215,-150.0,0.00015115,2]
[404033289,1769764238225,-150.0,0.00015115,2]
[404033290,1769764238235,-475.0,0.00015155,2]
[404033291,1769764238246,-475.0,0.00015155,2]
[404033292,1769764238257,-500.0,0.00015171,2]
[404033293,1769764238270,-500.0,0.00015171,2]
[404033294,1769764238281,-500.0,0.00015171,2]
[404033295,1769764238293,-488.72,0.00015201,3]
[404033296,1769764238303,-1359.66595194,0.00015211,2]
[404033297,1769764238313,-283.57264609,0.00015252,2]
[404033298,1769764238323,-623.10272367,0.00015252,2]
[404033299,1769764238333,-150.0,0.00015252,2]
[404033300,1769764238344,-500.0,0.00015292,2]
[404033301,1769764238355,-500.0,0.00015292,2]
[404033302,1769764238366,-500.0,0.00015292,2]
[404033303,1769764238377,-246.18662904,0.00015292,2]
[404033304,1769764238387,-607.69815009,0.00015292,2]
[404033305,1769764238401,-500.0,0.00015292,2]
[404033306,1769764238412,-500.0,0.00015292,2]
[404033307,1769764238422,-500.0,0.00015292,2]
[404033308,1769764238433,-500.0,0.00015292,2]
[404033309,1769764238444,-527.49643929,0.00015292,2]
[404033310,1769764238455,-500.0,0.00015292,2]
[404033311,1769764238467,-500.0,0.00015292,2]
[404033312,1769764238482,-500.0,0.00015292,2]
[404033313,1769764238494,-500.0,0.00015292,2]
[404033314,1769764238504,-500.0,0.00015292,2]
[404033315,1769764238515,-500.0,0.00015292,2]
[404033316,1769764238526,-500.0,0.00015292,2]
[404033317,1769764238537,-500.0,0.00015292,2]
[404033318,1769764238548,-311.59039057,0.00015292,2]
[404033319,1769764238559,-207.21068893,0.00015292,2]
[404033320,1769764238572,-292.78931107,0.00015292,2]
[404033321,1769764238582,-500.0,0.00015292,2]
[404033322,1769764238593,-500.0,0.00015292,2]
[404033323,1769764238604,-500.0,0.00015292,2]
[404033324,1769764238614,-500.0,0.00015292,2]
[404033325,1769764238624,-500.0,0.00015292,2]